bitfinex/quotes_ETHUSD_20250214
["timestamp","ask_amount","ask_price","bid_price","bid_amount"]
[1739528304646,3.67818,2718.8,2718.2,3.81714589]
[1739528304942,3.67818,2718.8,2718.3,3.67869]
[1739528305310,7.35635,2718.8,2718.4,0.13811578]
[1739528305508,3.67817,2718.8,2718.4,0.13811578]
[1739528306144,0.8151,2718.9,2718.5,3.67848]
[1739528306306,3.6779,2719.0,2718.5,0.7781]
[1739528306505,3.6779,2719.0,2718.6,0.13790571]
[1739528308045,7.35581,2719.0,2718.6,0.13790571]
[1739528308268,3.6779,2719.0,2718.6,0.13790571]
[1739528308567,0.8151,2719.1,2718.6,0.13790571]
[1739528308711,3.67787,2719.0,2718.6,0.13790571]
[1739528310134,3.67779,2719.1,2718.6,0.13790571]
[1739528310334,8.99534528,2719.2,2718.6,0.13790571]
[1739528310745,3.67785,2719.0,2718.6,0.13790571]
[1739528311529,3.67797,2718.9,2718.6,0.13790571]
[1739528312360,3.67814,2718.8,2718.6,0.13790571]
[1739528313565,3.67797,2718.9,2718.6,0.13790571]
[1739528314823,3.67777,2719.1,2718.6,0.13790571]
[1739528315162,3.67788,2719.0,2718.6,0.13790571]
[1739528315325,3.67802,2718.9,2718.6,0.13790571]
[1739528315826,3.67788,2719.0,2718.6,0.13790571]
[1739528316050,12.67308528,2719.2,2718.6,3.81621571]
[1739528316560,3.67774,2719.1,2718.6,3.81621571]
[1739528316757,3.67774,2719.1,2718.6,4.64348628]
[1739528318961,8.89540528,2719.2,2718.7,0.7903]
[1739528319176,8.89540528,2719.2,2718.7,4.46849]
[1739528319177,3.67757,2719.2,2718.7,4.46849]
[1739528319378,0.111026,2719.3,2718.8,3.678]
[1739528319562,3.788476,2719.3,2718.8,3.678]
[1739528319769,3.788476,2719.3,2718.8,4.72661255]
[1739528320148,3.788476,2719.3,2718.9,0.7903]
[1739528320488,3.788476,2719.3,2719.0,0.13726003]
[1739528320991,0.111026,2719.3,2719.0,0.13726003]
[1739528321950,0.111026,2719.3,2719.1,0.7903]
[1739528322156,0.111026,2719.3,2719.2,0.13705005]
[1739528325228,0.111026,2719.3,2719.2,0.59756406]
[1739528325435,0.111026,2719.3,2719.2,4.27511406]
[1739528325759,0.111026,2719.3,2719.2,5.06541406]
[1739528326367,0.111026,2719.3,2719.2,5.61541406]
[1739528326552,0.111026,2719.3,2719.2,5.65218208]
[1739528326963,0.111026,2719.3,2719.2,5.61541406]
[1739528327148,0.111026,2719.3,2719.2,5.65218205]
[1739528327551,0.111026,2719.3,2719.2,5.99416306]
[1739528328250,0.111026,2719.3,2719.2,11.20739507]
[1739528329306,0.111026,2719.3,2719.2,14.22239507]
[1739528329459,0.111026,2719.3,2719.2,14.94692976]
[1739528330691,0.111026,2719.3,2719.2,14.48739507]
[1739528332974,0.111026,2719.3,2719.2,14.22239507]
[1739528333328,0.111026,2719.3,2719.2,14.20739507]
[1739528335572,0.111026,2719.3,2719.2,13.86541406]
[1739528339516,0.111026,2719.3,2719.2,14.20681147]
[1739528348000,0.111026,2719.3,2719.2,0.47844746]
[1739528349402,0.061026,2719.3,2719.2,0.17382412]
[1739528349617,0.061026,2719.3,2719.2,4.36460005]
[1739528350130,0.061026,2719.3,2719.2,5.19480005]
[1739528350332,0.061026,2719.3,2719.2,6.08204706]
[1739528351994,0.061026,2719.3,2719.2,6.42453542]
[1739528352397,0.061026,2719.3,2719.2,0.47953841]
[1739528353453,0.061026,2719.3,2719.2,0.13705005]
[1739528353591,0.061026,2719.3,2718.9,7.35573]
[1739528353791,0.061026,2719.3,2719.2,0.13144125]
[1739528353992,0.061026,2719.3,2719.0,3.67774]
[1739528354234,0.061026,2719.3,2719.2,0.13144125]
[1739528354439,0.061026,2719.3,2719.0,3.67774]
[1739528354635,0.061026,2719.3,2719.2,0.13144125]
[1739528354798,0.061026,2719.3,2718.9,3.67786]
[1739528355000,0.061026,2719.3,2719.2,0.13144125]
[1739528355214,0.061026,2719.3,2718.9,3.67785]
[1739528355409,0.061026,2719.3,2719.2,0.131596]
[1739528355610,0.061026,2719.3,2719.1,3.67761]
[1739528355902,0.061026,2719.3,2719.2,0.131596]
[1739528356321,3.738466,2719.3,2718.9,0.8916742]
[1739528356528,3.738466,2719.3,2719.2,0.131596]
[1739528356703,3.738466,2719.3,2718.8,3.67796]
[1739528356908,3.738466,2719.3,2719.2,0.131596]
[1739528356909,4.501066,2719.3,2719.2,0.131596]
[1739528357105,0.7626,2719.0,2718.5,0.8302]
[1739528357429,0.7626,2719.0,2718.5,5.259486]
[1739528357811,0.7626,2719.0,2718.5,1.61785674]
[1739528358016,0.7626,2719.0,2718.6,3.67836]
[1739528358554,0.7626,2719.0,2718.5,4.429346]
[1739528358728,3.67796,2718.9,2718.5,0.750876]
[1739528358935,3.67796,2718.9,2718.4,3.67856]
[1739528359116,3.67812,2718.8,2718.3,0.55]
[1739528359449,0.7626,2718.8,2718.4,3.67862]
[1739528359804,0.7626,2718.8,2718.5,3.6784]
[1739528360004,0.7626,2718.8,2718.6,3.67833]
[1739528360949,0.7626,2718.8,2718.5,0.790702]
[1739528361403,0.7626,2718.8,2718.6,0.1326323]
[1739528361920,0.7626,2718.8,2718.4,3.67855]
[1739528362122,0.7626,2718.8,2718.7,0.13252728]
[1739528362332,0.7626,2718.8,2718.4,3.67855]
[1739528362508,0.7626,2718.8,2718.7,0.13252728]
[1739528362847,0.7626,2718.8,2718.5,3.67841]
[1739528363049,0.7626,2718.8,2718.7,0.13252728]
[1739528363354,0.7626,2718.8,2718.6,3.67826]
[1739528363649,0.7626,2718.8,2718.7,0.13252728]
[1739528364425,0.7626,2718.8,2718.4,4.469278]
[1739528364608,0.7626,2718.8,2718.5,3.67847]
[1739528364803,0.7626,2718.8,2718.7,0.13252728]
[1739528365008,0.7626,2718.8,2718.5,7.35685]
[1739528365242,0.7626,2718.8,2718.7,0.13252728]
[1739528365488,0.8321,2719.2,2718.8,3.67797]
[1739528365947,0.8321,2719.2,2718.9,0.13231725]
[1739528366504,0.8321,2719.2,2718.9,3.81025725]
[1739528366711,0.061026,2719.3,2719.0,3.67769]
[1739528367053,0.061026,2719.3,2719.1,0.13213434]
[1739528367238,0.061026,2719.3,2718.9,4.42669973]
[1739528367438,0.061026,2719.3,2719.2,0.13199066]
[1739528367623,0.061026,2719.3,2719.0,3.67781]
[1739528367818,0.061026,2719.3,2719.1,0.789]
[1739528368023,0.061026,2719.3,2719.2,3.80954066]
[1739528368219,0.061026,2719.3,2719.2,3.67755]
[1739528368418,0.061026,2719.3,2719.2,4.50518156]
[1739528368660,0.061026,2719.3,2719.2,4.63712965]
[1739528369242,0.061026,2719.3,2719.2,5.22390062]
[1739528369456,0.061026,2719.3,2719.2,8.22390062]
[1739528369632,0.061026,2719.3,2719.2,8.18712965]
[1739528372473,0.061026,2719.3,2719.2,5.18712965]
[1739528374254,0.061026,2719.3,2719.2,5.22389824]
[1739528374656,0.061026,2719.3,2719.2,5.18712965]
[1739528377688,0.061026,2719.3,2719.2,4.63712965]
[1739528377841,0.061026,2719.3,2719.2,0.13194809]
[1739528378046,0.061026,2719.3,2719.0,3.67774]
[1739528378256,0.061026,2719.3,2719.1,3.80933843]
[1739528378577,0.061026,2719.3,2719.1,0.13165843]
[1739528379081,0.061026,2719.3,2719.2,3.67755]
[1739528379284,0.061026,2719.3,2719.2,4.59456025]
[1739528379458,0.061026,2719.3,2719.2,4.55778728]
[1739528379659,0.061026,2719.3,2719.2,5.90038728]
[1739528380386,0.061026,2719.3,2719.2,5.89288728]
[1739528381166,0.061026,2719.3,2719.2,8.89288728]
[1739528382487,0.061026,2719.3,2719.2,4.55778728]
[1739528382687,0.061026,2719.3,2719.2,3.80910344]
[1739528383189,0.061026,2719.3,2719.2,0.13155344]
[1739528383392,0.061026,2719.3,2719.2,3.80910344]
[1739528383558,0.061026,2719.3,2719.2,0.13155344]
[1739528384050,0.061026,2719.3,2719.2,3.80910344]
[1739528384455,0.061026,2719.3,2719.2,4.55777678]
[1739528385160,0.061026,2719.3,2719.2,4.59454834]
[1739528386081,0.061026,2719.3,2719.2,0.88022678]
[1739528386278,0.061026,2719.3,2719.2,4.55777678]
[1739528386561,0.061026,2719.3,2719.2,5.10777678]
[1739528390451,0.061026,2719.3,2719.2,5.14454692]
[1739528393972,0.061026,2719.3,2719.2,5.10777678]
[1739528394694,0.061026,2719.3,2719.2,5.87557678]
[1739528395464,0.061026,2719.3,2719.2,5.9123442]
[1739528395893,0.061026,2719.3,2719.2,5.87557678]
[1739528396277,0.061026,2719.3,2719.2,5.10777678]
[1739528398662,0.061026,2719.3,2719.2,5.14454446]
[1739528398895,0.061026,2719.3,2719.2,5.10777678]
[1739528400790,0.825326,2719.3,2719.2,5.10777678]
[1739528401003,0.825326,2719.3,2719.2,4.35910344]
[1739528404155,0.061026,2719.3,2719.2,4.35910344]
[1739528404995,0.061026,2719.3,2719.2,5.18460344]
[1739528405623,0.061026,2719.3,2719.2,4.35910344]
[1739528407218,0.860026,2719.3,2719.2,4.35910344]
[1739528407528,0.860026,2719.3,2719.2,5.71418178]
[1739528407694,0.061026,2719.3,2719.2,5.71418178]
[1739528410335,0.860026,2719.3,2719.2,5.71418178]
[1739528411353,0.860026,2719.3,2719.2,0.13155344]
[1739528411844,0.860026,2719.3,2719.2,0.68155344]
[1739528412331,0.860026,2719.3,2719.2,0.13155344]
[1739528412332,4.537436,2719.3,2719.2,0.13155344]
[1739528412493,3.738436,2719.3,2719.0,5.25]
[1739528412693,0.799,2719.2,2719.0,5.25]
[1739528412894,0.799,2719.2,2719.1,0.13158107]
[1739528413095,4.47655,2719.2,2719.1,0.13158107]
[1739528413332,5.2980486,2719.2,2719.1,0.13158107]
[1739528413531,0.799,2719.0,2718.7,0.23585191]
[1739528413838,4.47682,2719.0,2718.7,0.23585191]
[1739528413992,4.47709,2718.8,2718.7,0.23585191]
[1739528415231,0.799,2717.9,2717.3,3.67998]
[1739528415443,4.47844,2717.9,2717.3,3.67998]
[1739528415662,4.47831,2717.9,2717.3,3.67998]
[1739528415963,0.799,2717.9,2717.3,3.67998]
[1739528416538,0.799,2717.9,2717.4,3.67997]
[1739528416931,4.47831,2717.9,2717.4,3.67997]
[1739528417147,4.926141,2717.9,2717.4,3.67997]
[1739528417351,1.246831,2717.9,2717.4,3.67997]
[1739528417535,0.799,2717.9,2717.4,3.67997]
[1739528421365,0.799,2717.9,2717.5,0.03679728]
[1739528421568,5.97508528,2718.2,2717.8,3.67944]
[1739528421723,5.97508528,2718.2,2717.9,3.80857702]
[1739528422138,10.25152381,2718.2,2717.9,0.12934702]
[1739528423041,10.25152381,2718.2,2717.6,3.6796]
[1739528423372,0.7573,2718.0,2717.5,3.94385]
[1739528423666,4.43648,2718.0,2717.6,0.12964295]
[1739528423874,0.7573,2718.0,2717.6,0.12964295]
[1739528425128,5.82954738,2718.0,2717.6,0.12964295]
[1739528425446,2.15035738,2718.0,2717.6,0.12964295]
[1739528427230,5.82952738,2718.0,2717.6,0.12964295]
[1739528427731,2.15035738,2718.0,2717.6,0.12964295]
[1739528429384,0.7573,2718.0,2717.6,3.80933295]
[1739528429740,0.7573,2718.0,2717.6,0.12964295]
[1739528430640,0.7573,2718.0,2717.6,3.80935295]
[1739528430841,0.7573,2718.0,2717.6,0.12964295]
[1739528431274,4.43649,2718.0,2717.6,0.12964295]
[1739528431459,0.7573,2718.0,2717.6,0.12964295]
[1739528431659,0.7573,2718.0,2717.6,3.80935295]
[1739528432678,0.7573,2718.0,2717.6,3.85877295]
[1739528435571,0.7573,2718.0,2717.6,0.17913295]
[1739528436384,4.43647,2718.0,2717.6,0.17913295]
[1739528436976,0.7573,2718.0,2717.6,3.85873295]
[1739528437175,0.7573,2718.0,2717.6,0.17913295]
[1739528438786,0.7573,2718.0,2717.6,3.85881295]
[1739528438962,0.7573,2718.0,2717.6,0.17913295]
[1739528439143,0.7573,2718.0,2717.6,3.85875295]
[1739528440381,0.7573,2718.0,2717.6,0.17913295]
[1739528440553,4.43648,2718.0,2717.6,0.17913295]
[1739528440747,0.7573,2718.0,2717.6,0.17913295]
[1739528441084,3.67911,2718.1,2717.6,4.66584295]
[1739528441249,6.03038528,2718.2,2718.0,3.6791]
[1739528441452,0.8126,2718.2,2717.9,4.22922]
[1739528441682,0.8126,2718.2,2718.1,0.17879439]
[1739528441981,0.8126,2718.2,2718.1,0.17875566]
[1739528442686,0.8126,2718.4,2718.1,0.17875566]
[1739528443482,0.8126,2718.4,2718.1,3.85777566]
[1739528443688,7.35688,2718.6,2718.2,0.55]
[1739528443845,0.8126,2718.8,2718.2,0.55]
[1739528444047,0.8126,2718.8,2718.4,3.67853]
[1739528444456,0.8126,2718.8,2718.5,0.17824296]
[1739528444661,0.8126,2718.8,2718.6,3.67833]
[1739528444855,0.8126,2718.8,2718.5,3.85667296]
[1739528445102,0.8126,2718.8,2718.7,0.17802926]
[1739528445297,0.8126,2718.8,2718.6,0.17813611]
[1739528445596,0.8126,2718.8,2718.7,0.17802926]
[1739528445769,1.62944,2718.8,2718.3,3.67869]
[1739528445973,1.62944,2718.8,2718.4,0.17834983]
[1739528446903,1.62944,2718.8,2718.4,3.85695983]
[1739528447698,1.62944,2718.8,2718.4,0.17834983]
[1739528447900,0.8126,2718.7,2718.4,0.17834983]
[1739528448090,0.8126,2718.7,2718.2,4.22881]
[1739528448288,0.8126,2718.7,2718.5,0.17807648]
[1739528448464,1.261678,2718.7,2718.2,4.22881]
[1739528448670,4.49084,2718.7,2718.6,0.17796963]
[1739528448860,0.8126,2718.3,2717.8,3.67941]
[1739528449066,4.49146,2718.3,2717.6,3.94362]
[1739528449609,3.67899,2718.2,2717.6,3.94362]
[1739528449767,0.762,2718.0,2717.6,3.94362]
[1739528450890,0.762,2718.0,2717.7,3.67957]
[1739528451407,0.762,2718.0,2717.8,0.17899891]
[1739528451769,0.762,2718.0,2717.6,3.94369]
[1739528451991,0.762,2718.0,2717.7,0.1791097]
[1739528452554,4.44126,2718.0,2717.7,0.1791097]
[1739528453860,0.762,2718.0,2717.7,0.1791097]
[1739528455517,0.762,2718.0,2717.7,3.8586697]
[1739528455713,0.762,2718.0,2717.8,3.67932]
[1739528456117,0.762,2718.0,2717.9,0.17886876]
[1739528457041,0.762,2718.0,2717.9,3.67931]
[1739528457198,0.7736,2718.3,2717.9,0.17886876]
[1739528458843,0.7736,2718.3,2718.0,3.67914]
[1739528459202,0.7736,2718.3,2718.1,0.17865496]
[1739528460332,0.7736,2718.3,2717.9,3.67926]
[1739528460514,0.7736,2718.3,2718.2,0.17854807]
[1739528460722,4.45218,2718.5,2718.0,0.55]
[1739528461080,5.265243,2718.5,2718.1,0.17862785]
[1739528461274,1.586663,2718.5,2718.1,3.85765785]
[1739528461548,0.7736,2718.5,2718.3,3.67871]
[1739528461844,0.7736,2718.5,2718.4,0.17830335]
[1739528462043,4.45209,2718.5,2718.4,0.17830335]
[1739528462343,4.45235,2718.4,2717.8,3.67934]
[1739528462505,4.45235,2718.4,2717.9,0.55]
[1739528464532,4.45235,2718.4,2717.9,4.22928]
[1739528465321,3.6788,2718.3,2717.9,0.55]
[1739528465501,0.7698,2718.2,2717.9,0.55]
[1739528465934,4.44871,2718.2,2717.7,3.67958]
[1739528466521,0.7698,2718.2,2717.8,3.85825563]
[1739528466717,0.7698,2718.2,2717.9,3.67923]
[1739528467250,0.7698,2718.2,2718.0,3.85781731]
[1739528467445,4.44824,2718.6,2718.1,3.67904]
[1739528467835,3.6785,2718.5,2718.2,0.17844353]
[1739528468213,0.7698,2718.3,2717.9,3.6793]
[1739528468544,3.67894,2718.2,2718.0,0.17865731]
[1739528468848,8.12744,2718.3,2717.8,0.55]
[1739528469143,3.6789,2718.2,2718.1,0.17855042]
[1739528469354,3.6789,2718.2,2717.6,0.8261]
[1739528469355,0.7698,2718.0,2717.5,3.67977]
[1739528469510,0.7698,2718.0,2717.5,7.35952]
[1739528469852,0.7698,2718.0,2717.6,3.67971]
[1739528470250,0.7698,2718.0,2717.5,3.67975]
[1739528470440,4.44902,2718.0,2717.6,0.55]
[1739528470802,0.7698,2718.0,2717.6,0.55]
[1739528472507,4.44898,2718.0,2717.6,0.55]
[1739528472906,0.7698,2718.0,2717.6,4.22968]
[1739528473137,0.7698,2718.0,2717.6,0.55]
[1739528474563,4.44901,2718.0,2717.6,0.55]
[1739528475465,4.44901,2718.0,2717.6,4.22971]
[1739528476041,4.44901,2718.0,2717.5,4.22985]
[1739528478374,3.67932,2717.9,2717.5,0.55]
[1739528478746,3.67932,2717.9,2717.5,4.22985]
[1739528478948,3.67931,2717.9,2717.5,0.55]
[1739528480246,3.67931,2717.9,2717.5,4.22983]
[1739528481571,3.67931,2717.9,2717.6,0.1792321]
[1739528483075,3.67931,2717.9,2717.4,3.6799]
[1739528483247,3.67931,2717.9,2717.7,0.17912518]
[1739528483571,0.444911,2717.8,2717.4,3.6799]
[1739528483747,3.67931,2717.9,2717.4,3.6799]
[1739528484838,7.35872,2717.9,2717.4,3.6799]
[1739528485038,3.67945,2717.8,2717.4,3.6799]
[1739528485273,3.67931,2717.9,2717.4,3.6799]
[1739528485473,7.35872,2717.9,2717.4,3.6799]
[1739528485681,3.67945,2717.8,2717.4,3.6799]
[1739528485841,4.492162,2717.9,2717.4,3.6799]
[1739528486780,8.171602,2717.9,2717.4,3.6799]
[1739528486950,4.492162,2717.9,2717.4,3.6799]
[1739528487276,8.171562,2717.9,2717.4,3.6799]
[1739528487673,4.492162,2717.9,2717.4,3.6799]
[1739528487975,8.171562,2717.9,2717.4,3.6799]
[1739528488175,3.67954,2717.8,2717.3,6.10016515]
[1739528488850,3.67954,2717.8,2717.3,3.68009]
[1739528489254,3.67961,2717.7,2717.3,0.55]
[1739528490071,3.67993,2717.5,2717.1,0.8226]
[1739528490276,0.7857,2717.6,2716.7,4.65031617]
[1739528490439,3.68019,2717.3,2716.8,3.68069]
[1739528491159,4.46577,2717.4,2716.8,4.23068]
[1739528491359,4.46577,2717.4,2716.8,0.55]
[1739528491559,0.7857,2717.4,2716.9,7.3612]
[1739528491743,0.7857,2717.4,2716.9,7.36117]
[1739528491940,0.7857,2717.4,2717.0,2.45687894]
[1739528492185,0.7857,2717.6,2717.1,4.44429]
[1739528492750,4.46546,2717.6,2717.1,4.44429]
[1739528493487,0.7857,2717.6,2717.2,3.68024]
[1739528493776,4.46542,2717.6,2717.1,4.44429]
[1739528494015,0.7857,2717.6,2717.1,4.44429]
[1739528494570,4.46544,2717.6,2717.1,4.44429]
[1739528495711,0.7704,2717.8,2717.2,0.55]
[1739528495987,0.7704,2717.8,2717.5,3.67978]
[1739528496285,0.7704,2717.8,2717.4,3.67994]
[1739528496464,0.7704,2717.8,2717.6,0.17950326]
[1739528496666,0.7704,2717.8,2717.5,0.17961019]
[1739528496864,0.7704,2717.8,2717.7,0.17939633]
[1739528497076,0.7704,2717.8,2717.4,3.67994]
[1739528497077,0.7704,2717.8,2717.6,0.17950326]
[1739528497284,0.7704,2717.8,2717.7,0.17939633]
[1739528497792,0.7704,2717.8,2717.2,4.2302]
[1739528497994,3.6796,2717.7,2717.2,0.55]
[1739528498322,3.6796,2717.7,2717.3,0.17982408]
[1739528498698,3.6796,2717.7,2717.2,4.23023]
[1739528498885,3.6796,2717.7,2717.4,0.17972874]
[1739528499079,1.215373,2717.8,2717.3,0.17983569]
[1739528499290,0.4894703,2717.7,2717.5,0.1796218]
[1739528499459,0.4894703,2717.7,2717.4,0.17974811]
[1739528499660,0.4894703,2717.7,2717.6,0.17953423]
[1739528501114,0.7704,2718.3,2717.6,0.55]
[1739528501308,0.7704,2718.0,2717.4,3.67989]
[1739528501479,3.67943,2717.9,2717.7,0.17942343]
[1739528501815,3.67965,2717.7,2717.2,3.68019]
[1739528502002,3.67965,2717.7,2717.3,0.17985118]
[1739528502184,3.67965,2717.7,2717.2,3.68019]
[1739528502383,3.67965,2717.7,2717.3,0.17985118]
[1739528502578,3.67965,2717.7,2717.1,0.8109]
[1739528502579,0.7704,2717.5,2717.1,0.55]
[1739528502784,0.7704,2717.5,2717.2,0.17995814]
[1739528503322,4.45036,2717.5,2717.0,3.68044]
[1739528503523,4.45036,2717.5,2717.3,0.17986668]
[1739528503705,4.45036,2717.5,2717.0,3.68044]
[1739528504242,4.45036,2717.5,2717.1,0.1800806]
[1739528504552,0.7704,2717.5,2717.1,0.1800806]
[1739528504753,0.7704,2717.5,2717.1,3.8604606]
[1739528504886,0.7704,2717.5,2717.2,0.38604606]
[1739528505224,0.7704,2717.5,2717.3,0.17992867]
[1739528505422,3.015,2718.5,2717.3,3.6801]
[1739528505423,0.7704,2717.9,2717.3,3.6801]
[1739528505631,0.7704,2717.9,2717.4,3.85971172]
[1739528506530,0.7704,2717.9,2717.4,0.17982172]
[1739528506692,3.67952,2717.8,2717.4,0.17982172]
[1739528506887,0.7704,2717.9,2717.4,0.17982172]
[1739528507082,4.894674,2717.9,2717.4,0.17982172]
[1739528507287,10.11245928,2717.9,2717.4,0.17982172]
[1739528508588,5.98818528,2717.9,2717.5,3.67977]
[1739528508830,5.21778528,2717.9,2717.8,3.67944]
[1739528508990,5.21778528,2717.9,2717.6,0.17960784]
[1739528509330,5.21778528,2717.9,2717.7,0.17946216]
[1739528509552,5.21778528,2717.9,2717.8,3.67944]
[1739528510025,5.21778528,2717.9,2717.8,0.17933975]
[1739528510187,5.21778528,2717.9,2717.6,3.67962]
[1739528510387,5.21778528,2717.9,2717.7,0.17944279]
[1739528513198,4.44944,2718.1,2717.7,0.17944279]
[1739528513398,5.262269,2718.1,2717.7,0.17944279]
[1739528515089,5.21778528,2718.4,2717.7,0.17944279]
[1739528515493,8.89644528,2718.4,2717.8,3.67944]
[1739528515768,3.67876,2718.3,2717.8,3.67944]
[1739528516004,3.67876,2718.3,2717.9,0.17922897]
[1739528516536,8.89642528,2718.4,2717.9,3.85845897]
[1739528516910,5.21778528,2718.4,2718.0,3.67916]
[1739528517326,5.21778528,2718.4,2718.1,0.1788796]
[1739528517513,0.7778,2718.6,2718.2,3.67883]
[1739528517850,5.21778528,2718.7,2718.3,0.93096584]
[1739528518053,8.89604528,2718.7,2718.3,0.93096584]
[1739528518413,3.67845,2718.6,2718.3,0.17866584]
[1739528518647,0.7778,2718.5,2717.9,6.85162515]
[1739528518854,3.67863,2718.4,2718.0,0.17890904]
[1739528519625,4.492117,2718.4,2718.0,0.17890904]
[1739528519822,0.7778,2718.2,2717.8,3.67939]
[1739528520158,0.7778,2718.2,2717.9,0.1787371]
[1739528520854,4.45697,2718.0,2717.4,3.6799]
[1739528521058,3.67932,2717.9,2717.5,0.17921126]
[1739528521363,4.45751,2717.6,2717.5,0.17921126]
[1739528521540,0.7778,2717.6,2717.5,0.17921126]
[1739528521719,0.7778,2717.6,2717.1,4.43268]
[1739528521920,0.7778,2717.6,2717.5,0.1793042]
[1739528522130,0.7778,2717.6,2717.1,4.43268]
[1739528522352,0.7778,2717.6,2717.5,0.1793042]
[1739528522526,0.7778,2717.6,2717.2,3.68024]
[1739528522735,0.7778,2717.6,2717.5,0.1793042]
[1739528522948,0.7778,2717.6,2717.2,3.68024]
[1739528523136,0.7778,2717.6,2717.5,0.1793042]
[1739528523665,0.7778,2717.6,2717.2,3.68024]
[1739528523960,0.7778,2717.6,2717.3,0.17951809]
[1739528524349,0.7778,2717.6,2717.1,4.43264]
[1739528524537,0.7778,2717.6,2717.4,0.17941115]
[1739528524743,0.7778,2717.6,2717.1,4.43264]
[1739528525228,0.7778,2717.6,2717.2,0.17962505]
[1739528525727,0.7778,2717.6,2717.2,3.85984505]
[1739528526922,0.7778,2717.6,2717.3,3.6801]
[1739528527370,0.7778,2717.6,2717.4,0.17941115]
[1739528528312,0.78,2717.8,2717.4,3.85939115]
[1739528528524,0.78,2717.8,2717.4,3.85931115]
[1739528529033,0.78,2718.0,2717.7,3.67955]
[1739528529171,4.45897,2718.2,2717.7,3.67955]
[1739528529503,5.50799423,2718.2,2717.8,0.17909964]
[1739528529722,0.78,2718.2,2717.8,0.17909964]
[1739528529885,5.21778528,2718.3,2717.9,4.48223]
[1739528530085,9.67617528,2718.6,2718.0,3.67904]
[1739528530279,13.35465528,2718.6,2718.0,3.85791808]
[1739528530582,3.67858,2718.5,2718.0,0.17887808]
[1739528531185,3.67868,2718.4,2718.0,0.17887808]
[1739528532237,1.33547553,2718.5,2718.0,0.17887808]
[1739528532439,5.99778528,2718.6,2718.0,0.17887808]
[1739528532598,9.67623528,2718.6,2718.0,0.17887808]
[1739528532943,3.67864,2718.4,2718.0,0.17887808]
[1739528533442,3.67888,2718.3,2718.0,0.17887808]
[1739528533572,0.78,2718.2,2717.7,3.6795]
[1739528533767,4.904788,2718.2,2718.1,0.17873629]
[1739528534007,10.12257328,2718.2,2718.1,0.17873629]
[1739528534211,4.45961,2717.7,2717.3,0.803]
[1739528534576,4.45961,2717.7,2717.4,0.17948471]
[1739528534916,0.78,2717.7,2717.4,0.17948471]
[1739528535215,3.6793,2718.0,2717.4,0.17948471]
[1739528535386,3.67938,2717.9,2717.4,3.85940471]
[1739528536112,3.67938,2717.9,2717.4,0.17948471]
[1739528536320,3.67948,2717.8,2717.4,0.17948471]
[1739528539117,3.67933,2717.9,2717.4,3.85946471]
[1739528539498,3.67958,2717.7,2717.4,0.72948471]
[1739528539690,7.35873,2717.9,2717.4,0.72948471]
[1739528540079,7.35871,2717.9,2717.4,0.72948471]
[1739528540586,3.67933,2717.9,2717.4,0.72948471]
[1739528541110,7.35873,2717.9,2717.4,0.72948471]
[1739528541315,3.67951,2717.8,2717.4,0.72948471]
[1739528541817,3.67933,2717.9,2717.4,0.72948471]
[1739528542121,3.67918,2718.0,2717.5,3.67981]
[1739528542271,0.78,2718.1,2717.4,0.72948471]
[1739528542475,7.3588,2717.9,2717.4,0.72948471]
[1739528542676,3.67939,2717.9,2717.4,0.72948471]
[1739528543083,7.35879,2717.9,2717.4,0.72948471]
[1739528543517,3.67946,2717.8,2717.4,0.72948471]
[1739528543716,3.67955,2717.8,2717.4,0.72948471]
[1739528544021,3.67969,2717.7,2717.4,0.17948471]
[1739528544181,4.047649,2717.7,2717.4,0.17948471]
[1739528545017,3.67965,2717.7,2717.4,0.17948471]
[1739528545214,0.8282,2718.0,2717.4,0.17948471]
[1739528545427,3.67985,2717.5,2717.4,0.17948471]
[1739528545722,3.67985,2717.5,2716.9,0.7657]
[1739528545723,0.8282,2717.5,2716.9,0.7657]
[1739528545920,7.36042,2717.3,2716.7,4.44655]
[1739528546130,3.68019,2717.3,2716.8,0.55]
[1739528546305,3.68019,2717.3,2716.8,4.2307]
[1739528546519,3.68003,2717.4,2716.8,3.6808]
[1739528546988,3.68003,2717.4,2716.7,5.30625537]
[1739528547183,3.68003,2717.4,2716.9,3.68065]
[1739528547973,4.50814,2717.5,2717.0,3.68045]
[1739528548174,3.67999,2717.4,2716.9,3.68065]
[1739528548586,4.50814,2717.5,2716.8,0.55]
[1739528548786,3.67998,2717.4,2716.8,4.73723043]
[1739528549317,3.6802,2717.3,2716.8,1.05650043]
[1739528549520,3.6802,2717.3,2716.8,4.73729043]
[1739528550204,0.8282,2717.7,2717.0,0.55]
[1739528550408,3.68013,2717.3,2717.0,0.55]
[1739528551905,7.35986,2717.5,2717.0,0.55]
[1739528552326,3.67988,2717.5,2717.0,0.55]
[1739528552531,0.8282,2717.7,2717.0,0.55]
[1739528552532,4.50783,2717.7,2717.0,4.23043]
[1739528552712,3.67982,2717.6,2717.0,4.23043]
[1739528552933,3.67982,2717.6,2717.0,7.91088]
[1739528553102,3.67954,2717.8,2717.0,0.55]
[1739528553307,3.67954,2717.8,2717.3,3.68004]
[1739528553520,3.67954,2717.8,2717.2,3.68012]
[1739528553732,3.67954,2717.8,2717.2,7.3603]
[1739528553931,3.67954,2717.8,2717.3,3.68002]
[1739528554242,3.67954,2717.8,2717.2,3.68012]
[1739528554541,3.67965,2717.7,2717.2,3.68012]
[1739528555043,3.67953,2717.8,2717.3,3.68006]
[1739528555435,8.89712528,2717.9,2717.5,0.8145]
[1739528556342,3.67954,2717.8,2717.6,0.17324753]
[1739528556650,5.21778528,2717.9,2717.6,0.17324753]
[1739528556831,1.46846733,2718.1,2717.6,3.85294753]
[1739528557152,3.67906,2718.1,2717.6,3.85294753]
[1739528557509,3.67899,2718.2,2717.7,4.22956]
[1739528558051,8.89650528,2718.4,2717.9,0.8145]